bitfinex-derivatives/quotes_BTCF0:USTF0_20250406
["timestamp","ask_amount","ask_price","bid_price","bid_amount"]
[1743982376127,0.1301687,77494.0,77493.0,0.02056835]
[1743982376429,0.4953687,77494.0,77493.0,0.02056835]
[1743982376629,0.4953687,77494.0,77493.0,0.01900835]
[1743982376931,0.4953687,77494.0,77493.0,0.02064835]
[1743982377123,0.4953687,77494.0,77493.0,0.01900835]
[1743982377330,0.1291887,77482.0,77479.0,0.3608]
[1743982377634,0.1291887,77482.0,77481.0,0.02066765]
[1743982377931,0.1291887,77482.0,77481.0,0.1309439]
[1743982378331,0.4943887,77482.0,77481.0,0.1309439]
[1743982378522,0.4943887,77482.0,77481.0,0.0017536]
[1743982379222,0.4943887,77482.0,77481.0,0.0001936]
[1743982379419,0.4943887,77482.0,77481.0,0.0017536]
[1743982379626,0.4943887,77482.0,77481.0,0.1309439]
[1743982380020,0.4943887,77482.0,77481.0,0.0017536]
[1743982380427,0.1291887,77483.0,77482.0,0.064594]
[1743982380628,0.1291887,77483.0,77482.0,0.066234]
[1743982380629,0.3128887,77483.0,77482.0,0.066234]
[1743982380932,0.3128887,77483.0,77482.0,0.00164]
[1743982381130,0.4993887,77483.0,77482.0,0.18484]
[1743982381430,0.1292254,77461.0,77460.0,0.1292248]
[1743982381631,0.1292213,77463.0,77460.0,0.38178]
[1743982381828,0.3702,77468.0,77460.0,0.38178]
[1743982382128,0.499412,77468.0,77467.0,0.1292137]
[1743982382333,0.1292187,77464.0,77463.0,0.3608]
[1743982382632,0.1292187,77464.0,77463.0,0.37908488]
[1743982382835,0.1292187,77464.0,77463.0,0.01940488]
[1743982383029,0.3702,77468.0,77467.0,0.1292137]
[1743982383225,0.0001936,77475.0,77474.0,0.129202]
[1743982383426,0.129394,77475.0,77474.0,0.01936488]
[1743982383624,0.129394,77475.0,77474.0,0.01940488]
[1743982383625,0.46671725,77475.0,77474.0,0.01940488]
[1743982383830,0.46671725,77475.0,77474.0,0.01828488]
[1743982384726,0.0001936,77475.0,77474.0,0.50828688]
[1743982385034,0.324194,77475.0,77474.0,0.38024488]
[1743982385224,0.325274,77475.0,77474.0,0.38024488]
[1743982385535,0.325274,77475.0,77474.0,0.01944488]
[1743982386433,0.84574495,77475.0,77460.0,0.0001936]
[1743982386637,0.1292237,77461.0,77460.0,0.0001936]
[1743982386933,0.00068,77461.0,77460.0,0.129419]
[1743982387127,0.69466495,77475.0,77474.0,0.129202]
[1743982387128,0.0001936,77475.0,77474.0,0.129202]
[1743982387328,0.01001782,77485.0,77484.0,0.1291853]
[1743982387524,0.1298637,77485.0,77484.0,0.36176]
[1743982387733,0.1298637,77485.0,77484.0,0.36172]
[1743982387934,0.1298637,77485.0,77484.0,0.49077806]
[1743982388235,0.00068,77485.0,77484.0,0.4909053]
[1743982388536,0.18824774,77490.0,77484.0,0.4909053]
[1743982388537,0.31742304,77490.0,77489.0,0.129177]
[1743982388740,0.31834304,77490.0,77489.0,0.130097]
[1743982388930,0.1300953,77490.0,77489.0,0.130097]
[1743982389332,0.1300953,77490.0,77489.0,0.14904153]
[1743982389533,0.1300953,77490.0,77460.0,0.3608]
[1743982389534,0.1291953,77478.0,77460.0,0.3608]
[1743982389737,0.1291943,77480.0,77479.0,0.0645967]
[1743982390036,0.1291943,77480.0,77479.0,0.0652767]
[1743982390037,0.1298743,77480.0,77479.0,0.0652767]
[1743982390244,0.1305543,77480.0,77479.0,0.0652767]
[1743982390434,0.1298743,77480.0,77479.0,0.0652767]
[1743982390734,0.00068,77480.0,77479.0,0.2630767]
[1743982390936,0.1291844,77487.0,77486.0,0.1291807]
[1743982391133,0.4906603,77487.0,77486.0,0.00068]
[1743982391329,0.1291953,77478.0,77477.0,0.0001936]
[1743982391634,0.1291953,77478.0,77453.0,0.00971203]
[1743982391635,0.46172,77478.0,77453.0,0.00971203]
[1743982391837,0.1292354,77454.0,77453.0,0.00971203]
[1743982392332,0.2658776,77454.0,77453.0,0.1299171]
[1743982392536,0.2658776,77454.0,77453.0,0.00068]
[1743982392731,0.2658776,77454.0,77453.0,0.1299171]
[1743982392932,0.1301154,77454.0,77453.0,0.1299171]
[1743982393231,0.26870234,77454.0,77453.0,0.1299171]
[1743982393534,0.27829101,77454.0,77453.0,0.00068]
[1743982394438,0.14905561,77454.0,77453.0,0.1299171]
[1743982394631,0.00088,77454.0,77453.0,0.1299171]
[1743982394832,0.0001936,77461.0,77460.0,0.1292254]
[1743982395027,0.0001936,77461.0,77459.0,0.393]
[1743982395243,0.1292387,77452.0,77451.0,0.4900391]
[1743982395427,0.14930308,77457.0,77453.0,0.0646185]
[1743982395631,0.1823936,77461.0,77460.0,0.1292254]
[1743982395833,0.01003866,77461.0,77460.0,0.4900254]
[1743982396233,0.0001936,77461.0,77460.0,0.4900254]
[1743982396537,0.129205,77473.0,77472.0,0.1292037]
[1743982396731,0.13894825,77473.0,77472.0,0.1292037]
[1743982397041,0.13894825,77473.0,77461.0,1.6989]
[1743982397042,0.37834325,77473.0,77461.0,1.6989]
[1743982397341,0.1292387,77452.0,77447.0,0.0646234]
[1743982397940,0.1292387,77452.0,77446.0,0.1924]
[1743982398131,0.663836,77452.0,77427.0,0.36183322]
[1743982398332,0.1292788,77428.0,77427.0,0.00103322]
[1743982398538,0.4900788,77428.0,77427.0,0.00103322]
[1743982398730,0.27382449,77428.0,77427.0,0.13031362]
[1743982399037,0.1292788,77428.0,77427.0,0.14846347]
[1743982399234,0.3152788,77428.0,77427.0,0.14846347]
[1743982399434,0.33054569,77428.0,77427.0,0.14846347]
[1743982399634,0.27382449,77428.0,77427.0,0.14846347]
[1743982400043,0.27470449,77428.0,77427.0,0.01986307]
[1743982400339,0.47040449,77428.0,77427.0,0.01986307]
[1743982400528,0.28424223,77428.0,77427.0,0.01986307]
[1743982400735,0.15496343,77428.0,77427.0,0.14914347]
[1743982400948,0.15496343,77428.0,77427.0,0.50994347]
[1743982401445,0.00088,77428.0,77427.0,0.63909654]
[1743982401642,0.11303356,77437.0,77434.0,0.1292688]
[1743982401837,0.11303356,77437.0,77434.0,0.14886026]
[1743982402237,0.12946083,77435.0,77434.0,0.03774131]
[1743982402440,0.27530084,77435.0,77434.0,0.03774131]
[1743982402633,0.27530084,77435.0,77434.0,0.03694131]
[1743982402838,0.27618084,77435.0,77434.0,0.01814985]
[1743982403042,0.33581374,77435.0,77434.0,0.52705732]
[1743982403344,0.01088982,77435.0,77434.0,0.52805732]
[1743982403546,0.14015692,77435.0,77434.0,0.03798852]
[1743982403850,0.00107373,77435.0,77434.0,0.52805732]
[1743982404237,0.00019373,77435.0,77434.0,0.52805732]
[1743982404633,0.00019373,77435.0,77434.0,0.65719872]
[1743982404838,0.18824774,77452.0,77451.0,0.1292404]
[1743982405141,0.31748644,77452.0,77451.0,0.14807907]
[1743982405344,0.31748644,77452.0,77451.0,0.16622892]
[1743982405543,0.1292387,77452.0,77451.0,0.16622892]
[1743982405744,0.1292387,77452.0,77451.0,0.03698852]
[1743982406047,0.1292387,77452.0,77451.0,0.16622892]
[1743982406247,0.18824774,77455.0,77454.0,0.1292354]
[1743982406542,0.18824774,77455.0,77454.0,0.50887407]
[1743982406744,0.18824774,77455.0,77454.0,0.52702392]
[1743982406942,0.18824774,77455.0,77454.0,0.16622392]
[1743982407248,0.46054172,77455.0,77454.0,0.01814985]
[1743982407639,0.0646235,77448.0,77429.0,0.3608]
[1743982407844,0.0646222,77449.0,77430.0,0.129274]
[1743982407845,0.0646322,77437.0,77430.0,0.129274]
[1743982408041,0.1292721,77433.0,77432.0,0.1893]
[1743982408347,0.1292721,77433.0,77432.0,0.01858936]
[1743982408544,0.1292788,77428.0,77427.0,0.00103322]
[1743982408750,0.1292788,77428.0,77427.0,0.01962324]
[1743982408946,0.14418908,77428.0,77427.0,0.50956797]
[1743982409249,0.00019373,77435.0,77434.0,0.1292688]
[1743982409446,0.00019373,77435.0,77434.0,0.50865882]
[1743982409643,0.00019373,77435.0,77434.0,0.89735882]
[1743982409843,0.3608,77462.0,77446.0,0.0646235]
[1743982410043,0.3608,77462.0,77455.0,0.1292337]
[1743982410044,0.1857,77461.0,77455.0,0.1292337]
[1743982410246,0.1857,77461.0,77460.0,0.1292254]
[1743982410447,0.3608,77462.0,77461.0,0.1292237]
[1743982410645,0.3608,77462.0,77461.0,0.14854484]
[1743982410848,0.0645946,77482.0,77468.0,0.0646059]
[1743982411149,0.18904774,77480.0,77479.0,0.1291937]
[1743982411349,0.18904774,77480.0,77479.0,0.00072]
[1743982411550,0.1292004,77475.0,77474.0,0.0646009]
[1743982411749,0.0008,77475.0,77474.0,0.0189364]
[1743982411954,0.18824774,77480.0,77479.0,0.1291937]
[1743982412149,0.18920775,77480.0,77479.0,0.5098901]
[1743982412752,0.18824774,77480.0,77479.0,0.63895649]
[1743982412951,0.18824774,77480.0,77479.0,0.83115649]
[1743982413346,0.00019373,77482.0,77481.0,0.1291903]
[1743982413552,0.18824774,77491.0,77484.0,0.0645923]
[1743982413751,0.22553957,77498.0,77491.0,0.0645861]
[1743982414046,0.001,77518.0,77509.0,0.1291437]
[1743982414243,0.26436951,77510.0,77509.0,0.50991383]
[1743982414750,0.26436951,77510.0,77509.0,0.63897689]
[1743982414949,0.2631295,77510.0,77509.0,1.01607689]
[1743982415843,0.3922715,77510.0,77509.0,0.88693319]
[1743982416147,0.3922715,77510.0,77509.0,1.01607689]
[1743982416555,0.2631295,77510.0,77509.0,1.01607689]
[1743982416853,0.3922715,77510.0,77509.0,1.01607689]
[1743982417244,0.3922715,77510.0,77509.0,0.99734676]
[1743982417541,0.3922715,77510.0,77509.0,0.86820306]
[1743982417746,0.3922715,77510.0,77509.0,0.00124]
[1743982417951,0.129152,77504.0,77503.0,0.3234537]
[1743982418149,0.129152,77504.0,77503.0,0.3246937]
[1743982418339,0.064575,77506.0,77505.0,0.1291503]
[1743982418544,0.129152,77504.0,77503.0,0.55634]
[1743982418744,0.064575,77506.0,77503.0,0.6209161]
[1743982419049,0.129152,77504.0,77503.0,0.75254]
[1743982419547,0.129152,77504.0,77503.0,0.36204]
[1743982419753,0.27550733,77504.0,77503.0,0.37963062]
[1743982419947,0.0645812,77498.0,77494.0,0.3608]
[1743982420252,0.129167,77495.0,77494.0,0.3608]
[1743982420550,0.59563713,77497.0,77494.0,0.3608]
[1743982420749,0.4492818,77497.0,77496.0,0.1291653]
[1743982421050,0.1291739,77493.0,77492.0,0.1291681]
[1743982421353,0.0645847,77494.0,77493.0,0.2518849]
[1743982422251,0.1991,77497.0,77496.0,0.1291653]
[1743982422453,0.0001936,77500.0,77499.0,0.1291603]
[1743982422646,0.0645817,77498.0,77495.0,0.0645835]
[1743982422845,0.1291653,77496.0,77495.0,0.1937472]
[1743982423046,0.1291653,77496.0,77495.0,0.0645835]
[1743982423250,0.1291687,77494.0,77493.0,0.3608]
[1743982423465,0.1291687,77494.0,77493.0,0.4899703]
[1743982423754,0.381,77495.0,77494.0,0.1291687]
[1743982423954,0.510167,77495.0,77494.0,0.3164687]
[1743982424146,0.0001936,77500.0,77499.0,0.1291603]
[1743982424547,0.4951523,77500.0,77499.0,0.1291603]
[1743982424740,0.129167,77495.0,77494.0,0.3857]
[1743982424947,0.129167,77495.0,77493.0,0.3608]
[1743982424948,0.1291687,77494.0,77493.0,0.3608]
[1743982425256,0.1291753,77490.0,77480.0,0.1984]
[1743982425550,0.1298953,77490.0,77485.0,0.1291831]
[1743982425757,0.27323175,77490.0,77487.0,0.129179]
[1743982425946,0.14405645,77490.0,77489.0,0.1293706]
[1743982426149,0.00072,77490.0,77489.0,0.1300506]
[1743982426347,0.1291753,77490.0,77489.0,0.0008736]
[1743982426548,0.27323175,77490.0,77489.0,0.0008736]
[1743982426748,0.27323175,77490.0,77489.0,0.0001936]
[1743982426957,0.4956953,77490.0,77489.0,0.0001936]
[1743982427454,0.3101953,77490.0,77489.0,0.3609936]
[1743982427644,0.45513456,77490.0,77489.0,0.3617136]
[1743982428050,0.35185926,77490.0,77467.0,0.3608]
[1743982428352,0.1292104,77469.0,77468.0,0.01796357]
[1743982428544,0.1292104,77469.0,77468.0,0.38326]
[1743982428850,0.0645967,77480.0,77468.0,0.38326]
[1743982429054,0.00096001,77480.0,77468.0,0.38326]
[1743982429247,0.1292104,77469.0,77468.0,0.38326]
[1743982429453,0.00092,77469.0,77468.0,0.512472]
[1743982429650,0.1292057,77472.0,77470.0,0.1292087]
[1743982429857,0.1302057,77472.0,77471.0,0.1955]
[1743982430154,0.192,77479.0,77471.0,0.38318]
[1743982430347,0.00990115,77480.0,77476.0,0.0645985]
[1743982430551,0.1957,77483.0,77472.0,0.3608]
[1743982430748,0.0645976,77478.0,77473.0,0.20090758]
[1743982431058,0.129202,77474.0,77473.0,0.1829]
[1743982431353,0.00979548,77480.0,77475.0,0.0646002]
[1743982431655,0.1291715,77493.0,77479.0,0.3608]
[1743982431858,0.1291715,77493.0,77491.0,0.1291729]
[1743982432048,0.1957,77494.0,77493.0,0.1291703]
[1743982432352,0.14548,77509.0,77499.0,0.0645798]
[1743982432559,0.129157,77501.0,77500.0,0.1829]
[1743982432759,0.13893503,77501.0,77500.0,0.1829]
[1743982433256,0.00977803,77501.0,77500.0,0.54293514]
[1743982433446,0.129157,77501.0,77500.0,0.41377644]
[1743982433643,0.1957,77502.0,77501.0,0.129157]
[1743982433853,0.129157,77501.0,77500.0,0.0176117]
[1743982434056,0.46821463,77501.0,77500.0,0.0176117]
[1743982434251,0.32275762,77501.0,77500.0,0.0176117]
[1743982434451,0.13875762,77501.0,77500.0,0.0176117]
[1743982434765,0.313157,77501.0,77500.0,0.0176117]
[1743982434961,0.674877,77501.0,77500.0,0.0182917]
[1743982435261,0.674877,77501.0,77500.0,0.0176117]
[1743982435855,0.69834477,77501.0,77500.0,0.1467704]
[1743982436160,0.32399777,77501.0,77500.0,0.1467704]
[1743982436360,0.01084077,77501.0,77500.0,0.03690733]
[1743982436552,0.13999777,77501.0,77500.0,0.03690733]
[1743982437065,0.47863122,77501.0,77500.0,0.0176117]
[1743982439258,0.47863122,77501.0,77500.0,0.16504864]
[1743982439459,0.33009777,77501.0,77500.0,0.16504864]
[1743982439660,0.33009777,77501.0,77500.0,0.16572864]
[1743982440160,0.33009777,77501.0,77500.0,0.35712864]
[1743982440361,0.33009777,77501.0,77500.0,0.22796994]
[1743982440561,0.345753,77501.0,77489.0,0.3608]
[1743982440763,0.1993,77500.0,77491.0,0.064586]
[1743982440967,0.1993,77500.0,77499.0,0.4899603]
[1743982441162,0.1291441,77509.0,77508.0,0.1291453]
[1743982441368,0.193716,77509.0,77508.0,0.1291453]
[1743982441564,0.129147,77507.0,77506.0,0.4544735]
[1743982441867,0.130307,77507.0,77506.0,0.4544735]
[1743982442259,0.00116,77507.0,77506.0,0.4544735]
[1743982442465,0.00116,77507.0,77506.0,0.58349493]
[1743982442661,0.0001936,77512.0,77511.0,0.1291403]
[1743982442866,0.0001936,77512.0,77511.0,0.4899403]
[1743982443267,0.0001936,77512.0,77511.0,0.61896173]
[1743982444671,0.0001936,77512.0,77511.0,1.01766173]
[1743982444867,0.0001936,77512.0,77511.0,0.8886403]
[1743982445169,0.0001936,77512.0,77511.0,1.01765341]
[1743982445564,0.1818,77530.0,77511.0,1.01765341]
[1743982445565,0.3608,77537.0,77511.0,1.03851311]
[1743982445757,0.064552,77533.0,77529.0,0.1291096]
[1743982445981,0.129107,77531.0,77530.0,0.1891]
[1743982446172,0.14649555,77533.0,77530.0,0.0645536]
[1743982446376,0.0095093,77557.0,77539.0,0.6454629]
[1743982446669,0.26565259,77563.0,77562.0,0.1290554]
[1743982446860,0.30360296,77571.0,77563.0,0.1290538]
[1743982447063,0.30360296,77571.0,77570.0,0.1290421]
[1743982447373,0.30491644,77571.0,77570.0,1.9898421]
[1743982447561,0.33069191,77579.0,77578.0,0.1290288]
[1743982447869,0.08089422,77587.0,77586.0,0.1290155]
[1743982448061,0.08089422,77587.0,77586.0,0.3608]
[1743982448264,0.08209423,77587.0,77586.0,0.4898155]
[1743982448674,2e-08,77587.0,77586.0,0.4898155]
[1743982448865,2e-08,77587.0,77586.0,0.61871719]
[1743982449462,0.0645103,77583.0,77579.0,0.12921954]
[1743982449666,0.4253103,77583.0,77582.0,0.1290222]
[1743982449876,0.36080002,77587.0,77583.0,0.0645096]
[1743982450074,0.00112003,77587.0,77586.0,0.1290155]
[1743982450273,0.00112003,77587.0,77579.0,0.00019334]
[1743982450473,0.3608,77580.0,77579.0,0.00019334]
[1743982450670,0.3608,77580.0,77579.0,0.12922054]
[1743982450969,0.00112001,77580.0,77579.0,0.12922054]
[1743982452668,0.00112001,77580.0,77579.0,0.14736329]
[1743982452868,0.3608,77584.0,77583.0,0.1290205]
[1743982453074,0.3608,77584.0,77583.0,0.14668818]
[1743982453274,0.365,77589.0,77588.0,0.1290122]
[1743982453478,0.7258,77589.0,77588.0,0.1290122]
[1743982453673,0.86073281,77589.0,77588.0,0.14667988]
[1743982453869,0.00112001,77589.0,77588.0,0.14667988]
[1743982454068,0.001,77590.0,77589.0,0.1290105]
[1743982454274,0.001,77590.0,77589.0,0.14708987]
[1743982454478,1e-07,77590.0,77589.0,0.16475755]
[1743982454676,4e-08,77594.0,77593.0,0.1290039]
[1743982454875,4e-08,77594.0,77593.0,0.14708327]
[1743982455074,4e-08,77594.0,77593.0,0.14776327]
[1743982455374,4e-08,77594.0,77593.0,0.44431436]
[1743982455581,4e-08,77594.0,77593.0,0.29431436]
[1743982456482,0.02322574,77600.0,77599.0,0.1289939]
[1743982456669,0.02322574,77600.0,77599.0,0.52630095]
[1743982457069,4e-08,77600.0,77599.0,0.65516775]
[1743982457269,4e-08,77600.0,77599.0,0.80516775]
[1743982457480,4e-08,77600.0,77599.0,2.15516775]
[1743982458279,0.3608,77629.0,77613.0,0.1289706]
[1743982458484,0.4252633,77640.0,77637.0,0.1289308]
[1743982458675,0.1308091,77638.0,77637.0,0.16467785]
[1743982458875,0.1308091,77638.0,77637.0,0.16543785]
[1743982459175,0.00188,77638.0,77637.0,0.16543785]
[1743982459380,0.00188,77638.0,77637.0,0.16531078]
[1743982459578,0.00188,77638.0,77637.0,0.16467785]
[1743982459883,0.00188,77638.0,77637.0,0.16543785]
[1743982460282,0.1308091,77638.0,77637.0,0.03650705]
[1743982460477,0.1308091,77638.0,77637.0,0.03574705]
[1743982460678,0.1308091,77638.0,77637.0,0.16455078]
[1743982460884,0.8524091,77638.0,77637.0,0.16455078]
[1743982461078,0.87348,77638.0,77610.0,0.31929389]
[1743982461282,0.3608,77614.0,77613.0,0.1289706]
[1743982461873,0.1998,77625.0,77624.0,0.1289524]
[1743982462081,0.1289423,77631.0,77630.0,0.128941]
[1743982462382,0.00019275,77632.0,77617.0,0.00019321]
[1743982462590,0.1998,77630.0,77629.0,0.128944]
[1743982462980,0.1998,77630.0,77627.0,0.1983]
[1743982463179,0.1289474,77627.0,77626.0,0.1289489]
[1743982463379,0.128954,77623.0,77622.0,0.1983]
[1743982463579,0.489754,77623.0,77622.0,0.1983]
[1743982463986,0.0644792,77621.0,77617.0,0.00019321]
[1743982464185,0.1289623,77618.0,77617.0,0.00019321]
[1743982464390,0.0644889,77609.0,77608.0,0.1289789]
[1743982464890,0.3608,77614.0,77613.0,0.1289706]
[1743982465089,0.3616,77614.0,77613.0,0.1296506]
[1743982465385,0.0008,77614.0,77613.0,0.1296506]
[1743982465583,0.1802,77622.0,77621.0,0.1289573]
[1743982465784,0.181,77622.0,77621.0,0.1296373]
[1743982465981,0.5418,77622.0,77621.0,0.1296373]
[1743982466181,0.5418,77622.0,77607.0,0.06449]
[1743982466385,0.67975712,77622.0,77621.0,0.1289573]
[1743982466879,0.5418,77622.0,77621.0,0.00068]
[1743982467082,0.1289673,77615.0,77614.0,0.378]
[1743982467384,0.4907673,77615.0,77614.0,0.37868]
[1743982467583,0.4907673,77615.0,77614.0,0.00068]
[1743982469191,0.1289955,77599.0,77598.0,0.1934898]
[1743982469384,0.00128,77599.0,77598.0,0.1942498]
[1743982469584,0.1884,77600.0,77599.0,0.1289939]
[1743982469781,0.00120001,77600.0,77599.0,0.1296739]
[1743982469995,0.3608,77602.0,77601.0,0.1289906]
[1743982470194,0.36200001,77602.0,77601.0,0.1289906]
[1743982470691,0.00120001,77602.0,77601.0,1.9078574]
[1743982470992,0.00019321,77609.0,77608.0,0.1289789]
[1743982471593,0.00019321,77609.0,77608.0,0.47234238]
[1743982471784,0.00019321,77609.0,77608.0,0.78394238]
[1743982471988,0.00019321,77609.0,77608.0,0.63394238]
[1743982472791,0.00019321,77609.0,77608.0,0.78394238]
[1743982473082,0.00019321,77609.0,77608.0,0.5247797]
[1743982473292,0.00019321,77609.0,77608.0,0.6725828]
[1743982473893,0.00019321,77609.0,77608.0,0.8225828]
[1743982474200,0.00019321,77609.0,77608.0,0.6725828]
[1743982474992,0.3608,77627.0,77623.0,0.0644767]
[1743982475188,0.36200001,77627.0,77624.0,0.01981622]
[1743982475496,0.36200001,77627.0,77626.0,0.128949]
[1743982475683,0.36200001,77627.0,77626.0,0.14876522]
[1743982476095,0.36200001,77627.0,77626.0,0.2775872]
[1743982476394,0.36200001,77627.0,77626.0,0.14876522]
[1743982476697,0.00120001,77627.0,77626.0,0.16758942]
[1743982476889,2e-08,77634.0,77633.0,0.1289374]
[1743982477090,2e-08,77634.0,77633.0,0.14875362]
[1743982477491,2e-08,77634.0,77633.0,0.2963998]
[1743982477786,2e-08,77634.0,77633.0,0.4915998]
[1743982478492,2e-08,77634.0,77633.0,0.2963998]
[1743982478900,0.19800002,77634.0,77633.0,0.16757782]
[1743982479899,2e-08,77638.0,77637.0,0.1289308]
[1743982480101,2e-08,77638.0,77637.0,0.16825122]
[1743982480592,2e-08,77638.0,77637.0,1.79706159]
[1743982481604,2e-08,77638.0,77637.0,1.79593822]
[1743982481997,2e-08,77638.0,77637.0,0.29593822]
[1743982482302,2e-08,77638.0,77637.0,0.16712785]
[1743982482500,2e-08,77638.0,77637.0,0.03819705]
[1743982482696,0.50316976,77638.0,77637.0,0.16644785]
[1743982482999,0.78293886,77638.0,77637.0,0.03823705]
[1743982483194,0.65400976,77638.0,77630.0,0.0644706]
[1743982483394,0.128933,77636.0,77635.0,0.1289336]
[1743982483594,0.3753,77637.0,77636.0,0.1289324]
[1743982483803,0.34584,77637.0,77636.0,0.1289324]
[1743982483999,0.67697646,77637.0,77636.0,0.1289324]
[1743982484504,0.37894,77637.0,77636.0,0.1289324]
[1743982484802,0.73974,77637.0,77636.0,0.1297724]
[1743982485101,0.18394,77637.0,77636.0,0.25857779]
[1743982485294,0.18394,77637.0,77636.0,0.1297724]
[1743982486607,0.18394,77637.0,77636.0,0.00084]
[1743982486793,0.0644669,77636.0,77625.0,0.23096806]
[1743982486995,0.036,77633.0,77625.0,0.23096806]
[1743982487199,0.3968,77629.0,77628.0,0.1289457]
[1743982487400,0.3608,77629.0,77628.0,0.1289457]
[1743982487598,0.00746713,77629.0,77628.0,0.1289457]
[1743982488002,0.20701278,77631.0,77629.0,0.1289424]
[1743982488190,0.1289426,77630.0,77629.0,0.1289424]
[1743982488395,0.14254238,77631.0,77630.0,0.1289424]
[1743982488696,0.1289389,77633.0,77632.0,0.1289391]
[1743982489097,0.26763429,77633.0,77632.0,0.1289391]
[1743982489493,0.27841065,77633.0,77632.0,0.1289391]
[1743982489698,0.14947175,77633.0,77632.0,0.1289391]
[1743982489999,0.27840915,77633.0,77632.0,0.1289391]
[1743982490195,0.13869539,77633.0,77632.0,0.1289391]
[1743982490397,0.1398954,77633.0,77632.0,0.1289391]
[1743982490597,2e-08,77638.0,77637.0,0.1289308]
[1743982491199,2e-08,77638.0,77637.0,0.61853453]
[1743982491408,2e-08,77638.0,77637.0,0.45393453]
[1743982491597,2e-08,77638.0,77637.0,0.3251308]
[1743982491804,2e-08,77638.0,77637.0,0.6859308]
[1743982492108,2e-08,77638.0,77637.0,0.81473453]
[1743982492304,2e-08,77638.0,77637.0,0.45393453]
[1743982492604,2e-08,77638.0,77637.0,0.81473453]
[1743982492802,2e-08,77638.0,77637.0,0.45393453]
[1743982493006,2e-08,77638.0,77637.0,0.3251308]
[1743982493408,2e-08,77638.0,77637.0,0.6859308]
[1743982493708,2e-08,77638.0,77637.0,0.4897308]
[1743982494495,2e-08,77638.0,77637.0,0.61853453]
[1743982494907,0.3608,77657.0,77644.0,0.1289191]
[1743982495107,0.3608,77657.0,77644.0,0.14699121]
[1743982495297,0.3608,77650.0,77644.0,0.14699121]
[1743982495502,0.3608,77650.0,77644.0,0.27579494]
[1743982495706,0.3608,77650.0,77644.0,0.27575723]
[1743982496005,0.3608,77657.0,77644.0,1.04383449]
[1743982496809,0.001,77662.0,77644.0,1.04383449]
[1743982497011,0.3608,77650.0,77644.0,1.04383449]
[1743982497204,0.00131276,77645.0,77644.0,0.39611166]
[1743982497413,0.00131276,77645.0,77644.0,0.52503076]
[1743982497600,0.00019275,77645.0,77644.0,0.52503076]
[1743982497911,0.00019275,77645.0,77644.0,0.5077535]
[1743982498097,0.00019275,77645.0,77644.0,0.50781072]
[1743982498300,0.51213153,77679.0,77661.0,0.1288909]
[1743982498608,0.1288782,77669.0,77661.0,0.14698252]
[1743982498907,0.1288831,77666.0,77661.0,0.14698252]
[1743982499108,0.0644415,77666.0,77661.0,0.14698252]
[1743982499407,0.27327395,77662.0,77661.0,0.14698252]
[1743982499612,0.26282014,77662.0,77661.0,0.14698252]
[1743982499813,0.13393084,77662.0,77661.0,0.14698252]
[1743982500014,0.26366014,77662.0,77661.0,0.14774252]
[1743982500210,0.4905293,77662.0,77661.0,0.14774252]
[1743982500413,0.63052118,77662.0,77661.0,0.01885162]
[1743982500609,0.63052118,77662.0,77661.0,0.01809162]
[1743982500814,0.1289009,77655.0,77654.0,0.00019321]
[1743982501003,0.4905009,77655.0,77654.0,0.00019321]
[1743982501209,0.26653137,77655.0,77654.0,0.1289025]
[1743982501405,0.49842717,77655.0,77654.0,0.14693379]
[1743982501610,0.49842717,77655.0,77654.0,0.14773379]
[1743982501611,0.0008,77655.0,77654.0,0.14773379]
[1743982501913,0.1288976,77660.0,77659.0,0.1288926]
[1743982502208,0.1915,77661.0,77660.0,0.1288926]
[1743982502417,0.82745032,77661.0,77660.0,0.1296526]
[1743982502718,1.24402,77661.0,77615.0,0.3608]
[1743982502918,0.3608,77637.0,77636.0,0.36057708]
[1743982503118,0.4908108,77637.0,77636.0,0.36057708]
[1743982503413,0.51133144,77637.0,77636.0,0.36057708]
[1743982503618,0.00108,77637.0,77636.0,0.36057708]
[1743982504111,0.1813,77642.0,77641.0,0.1289241]
[1743982504305,0.18234001,77642.0,77641.0,0.1296041]
[1743982504706,0.00104001,77642.0,77641.0,0.1296041]
[1743982504904,0.12996251,77642.0,77641.0,0.1296041]
[1743982505214,0.27594373,77642.0,77641.0,0.1296041]
[1743982505918,0.45724373,77642.0,77641.0,0.1296041]
[1743982506311,0.32832123,77642.0,77641.0,0.1296041]
[1743982506613,0.00604001,77642.0,77641.0,0.1296041]
[1743982506812,0.1339225,77642.0,77641.0,0.00068]
[1743982507119,0.14961847,77642.0,77641.0,0.1296041]
[1743982507305,0.27854097,77642.0,77641.0,0.00068]
[1743982507506,0.14961847,77642.0,77629.0,0.06466441]
[1743982507816,0.006,77642.0,77641.0,0.3608]
[1743982508119,0.005,77642.0,77641.0,0.4897241]
[1743982508420,0.3658,77642.0,77641.0,0.63113115]
[1743982508622,0.4947225,77642.0,77641.0,0.50220705]
[1743982508817,0.36704001,77642.0,77641.0,0.5023241]
[1743982509211,0.20544001,77642.0,77641.0,0.5023241]
[1743982509415,2e-08,77644.0,77643.0,0.1289208]
[1743982509712,2e-08,77644.0,77643.0,0.4897208]
[1743982509913,2e-08,77644.0,77643.0,2.00063863]
[1743982510118,2e-08,77644.0,77643.0,2.49891789]
[1743982510523,0.06050355,77650.0,77643.0,2.51999709]
[1743982510707,0.18883989,77656.0,77655.0,0.1289009]
[1743982510907,0.18967989,77656.0,77655.0,0.1289009]
[1743982511112,0.18967989,77656.0,77655.0,0.1296209]
[1743982511312,0.18967989,77656.0,77655.0,0.25839477]
[1743982511716,0.18883989,77656.0,77655.0,0.8700209]
[1743982511918,0.18971989,77656.0,77655.0,0.99879477]
[1743982512121,0.18883989,77656.0,77655.0,0.99879477]
[1743982512924,0.18883989,77656.0,77655.0,1.01668786]
[1743982513925,0.18883989,77656.0,77655.0,2.51679442]
[1743982514115,0.22437174,77663.0,77662.0,0.1288893]
[1743982514320,0.22521174,77663.0,77662.0,0.50836895]
[1743982514722,0.22437174,77663.0,77662.0,0.65474929]
[1743982514929,0.22437174,77663.0,77662.0,1.03904929]
[1743982515316,0.17351814,77663.0,77662.0,1.03904929]
[1743982515519,4e-08,77663.0,77662.0,1.03904929]
[1743982515820,4e-08,77663.0,77662.0,1.18904929]
[1743982516127,0.001,77686.0,77685.0,0.1288511]
[1743982516327,0.001,77686.0,77685.0,0.14753075]
[1743982516921,0.001,77686.0,77685.0,0.27629302]
[1743982517128,0.001,77686.0,77685.0,0.68619949]
[1743982517320,0.00184,77686.0,77685.0,0.68619949]
[1743982517517,0.001,77686.0,77685.0,0.68619949]
[1743982517920,1e-07,77686.0,77685.0,0.68619949]
[1743982518317,1e-07,77686.0,77685.0,2.18619949]